fUST/lending_fUST_20250614
["ID","MTS","AMOUNT","RATE_DAILY","PERIOD"]
[365794298,1749916258815,-220.0,0.00021917,4]
[365794299,1749916258824,-460.0,0.00021917,4]
[365794300,1749916258834,-460.0,0.00021917,4]
[365794301,1749916258843,-460.0,0.00021917,4]
[365794302,1749916258852,-460.0,0.00021917,4]
[365794303,1749916258862,-460.0,0.00021917,4]
[365794304,1749916258871,-460.0,0.00021917,4]
[365794305,1749916258880,-460.0,0.00021917,4]
[365794306,1749916258890,-460.0,0.00021917,4]
[365794307,1749916258899,-366.97104393,0.00021917,4]
[365794308,1749916258908,-312.68366557,0.00021917,4]
[365794309,1749916258918,-460.0,0.00022191,4]
[365794310,1749916258927,-460.0,0.00022191,4]
[365794311,1749916258936,-460.0,0.00022191,4]
[365794312,1749916258945,-460.0,0.00022191,4]
[365794313,1749916258954,-413.1402827,0.00022191,4]
[365794314,1749916258963,-460.0,0.00022191,4]
[365794315,1749916258972,-460.0,0.00022191,4]
[365794316,1749916258981,-350.0,0.00022191,4]
[365794317,1749916258990,-460.0,0.00022191,4]
[365794318,1749916259000,-460.0,0.00022465,4]
[365794319,1749916259008,-460.0,0.00022465,4]
[365794320,1749916259018,-460.0,0.00022465,4]
[365794321,1749916259027,-460.0,0.00022465,4]
[365794322,1749916259036,-460.0,0.00022465,4]
[365794323,1749916259045,-460.0,0.00022465,4]
[365794324,1749916259055,-460.0,0.00022465,4]
[365794325,1749916259065,-431.49474757,0.00022466,2]
[365794326,1749916259074,-460.0,0.00022739,4]
[365794327,1749916259083,-460.0,0.00022739,4]
[365794328,1749916259094,-280.0,0.00022739,4]
[365794329,1749916259103,-460.0,0.00022739,4]
[365794330,1749916259112,-460.0,0.00022739,4]
[365794331,1749916259121,-460.0,0.00022739,4]
[365794332,1749916259131,-460.0,0.00023013,4]
[365794333,1749916259140,-460.0,0.00023013,4]
[365794334,1749916259149,-460.0,0.00023013,4]
[365794335,1749916259160,-460.0,0.00023013,4]
[365794336,1749916259170,-33891.28305524,0.000232,7]
[365794337,1749916259179,-226.0,0.00023205,2]
[365794338,1749916259188,-674.10209169,0.00023245,8]
[365794339,1749916259197,-1500.0,0.00023268,2]
[365794340,1749916259206,-460.0,0.00023287,4]
[365794341,1749916259215,-460.0,0.00023287,4]
[365794342,1749916259226,-340.0,0.00023287,4]
[365794343,1749916259235,-460.0,0.00023287,2]
[365794344,1749916259244,-460.0,0.00023287,4]
[365794345,1749916259254,-400.0,0.00023287,4]
[365794346,1749916259263,-460.0,0.00023287,4]
[365794347,1749916259273,-460.0,0.00023287,4]
[365794348,1749916259282,-460.0,0.00023287,4]
[365794349,1749916259292,-370.0,0.00023287,4]
[365794350,1749916259303,-460.0,0.00023287,4]
[365794351,1749916259312,-682.77,0.00023287,4]
[365794352,1749916259322,-447.69334001,0.00023287,4]
[365794353,1749916259331,-460.0,0.00023287,4]
[365794354,1749916259340,-460.0,0.00023287,4]
[365794355,1749916259350,-460.0,0.00023287,4]
[365794356,1749916259359,-580.0,0.00023287,4]
[365794357,1749916259368,-460.0,0.00023287,4]
[365794358,1749916259377,-460.0,0.00023287,4]
[365794359,1749916259386,-582.24190177,0.00023287,4]
[365794360,1749916259395,-329.44195837,0.00023287,4]
[365794361,1749916259404,-280.0,0.00023287,4]
[365794362,1749916259414,-340.0,0.00023287,4]
[365794363,1749916259423,-460.0,0.00023287,4]
[365794364,1749916259433,-233.59544499,0.00023287,4]
[365794365,1749916259442,-460.0,0.00023287,4]
[365794366,1749916259452,-460.0,0.00023287,4]
[365794367,1749916259462,-340.0,0.00023287,4]
[365794368,1749916259471,-340.0,0.00023287,4]
[365794369,1749916259481,-290.0,0.00023287,4]
[365794370,1749916259491,-290.0,0.00023287,4]
[365794371,1749916259501,-380.0,0.00023287,4]
[365794372,1749916259510,-460.0,0.00023287,4]
[365794373,1749916259519,-460.0,0.00023287,4]
[365794374,1749916259529,-310.0,0.00023287,4]
[365794375,1749916259539,-460.0,0.00023287,4]
[365794376,1749916259548,-460.0,0.00023287,4]
[365794377,1749916259558,-460.0,0.00023287,4]
[365794378,1749916259567,-460.0,0.00023287,4]
[365794379,1749916259577,-500.0,0.00023287,4]
[365794380,1749916259586,-460.0,0.00023287,4]
[365794381,1749916259596,-167.43811431,0.00023287,4]
[365794382,1749916259606,-460.0,0.00023287,4]
[365794383,1749916259616,-460.0,0.00023287,4]
[365794384,1749916259625,-460.0,0.00023287,4]
[365794385,1749916259635,-460.0,0.00023287,4]
[365794386,1749916259645,-460.0,0.00023287,4]
[365794387,1749916259654,-460.0,0.00023287,4]
[365794388,1749916259664,-1721.92,0.00023287,4]
[365794389,1749916259673,-460.0,0.00023287,4]
[365794390,1749916259682,-460.0,0.00023287,4]
[365794391,1749916259692,-850.79,0.00023287,4]
[365794392,1749916259702,-460.0,0.00023287,4]
[365794393,1749916259711,-2378.63,0.00023287,4]
[365794394,1749916259721,-460.0,0.00023287,4]
[365794395,1749916259731,-460.0,0.00023287,4]
[365794396,1749916259740,-168.13025455,0.00023287,4]
[365794397,1749916259750,-630.26,0.00023287,4]
[365794398,1749916259760,-460.0,0.00023287,4]
[365794399,1749916259770,-460.0,0.00023287,4]
[365794400,1749916259780,-1378.04,0.00023287,4]
[365794401,1749916259789,-460.0,0.00023287,4]
[365794402,1749916259799,-460.0,0.00023287,4]
[365794403,1749916259809,-460.0,0.00023287,4]
[365794404,1749916259819,-460.0,0.00023287,4]
[365794405,1749916259829,-798.04,0.00023287,4]
[365794406,1749916259838,-460.0,0.00023287,4]
[365794407,1749916259847,-2926.7,0.00023287,4]
[365794408,1749916259857,-200.0,0.00023287,4]
[365794409,1749916259866,-460.0,0.00023287,4]
[365794410,1749916259876,-460.0,0.00023287,4]
[365794411,1749916259885,-460.0,0.00023287,4]
[365794412,1749916259895,-460.0,0.00023287,4]
[365794413,1749916259905,-460.0,0.00023287,4]
[365794414,1749916259918,-460.0,0.00023287,4]
[365794415,1749916259927,-1184.06,0.00023287,4]
[365794416,1749916259938,-460.0,0.00023287,4]
[365794417,1749916259947,-460.0,0.00023287,4]
[365794418,1749916259957,-460.0,0.00023287,4]
[365794419,1749916259966,-460.0,0.00023287,4]
[365794420,1749916259976,-460.0,0.00023287,4]
[365794421,1749916259986,-240.0,0.00023287,4]
[365794422,1749916259995,-460.0,0.00023287,4]
[365794423,1749916260005,-460.0,0.00023287,4]
[365794424,1749916260015,-460.0,0.00023287,4]
[365794425,1749916260024,-290.0,0.00023287,4]
[365794426,1749916260034,-518.22,0.00023287,4]
[365794427,1749916260043,-460.0,0.00023287,4]
[365794428,1749916260053,-474.84,0.00023287,4]
[365794429,1749916260064,-460.0,0.00023287,4]
[365794430,1749916260074,-460.0,0.00023287,4]
[365794431,1749916260084,-460.0,0.00023287,4]
[365794432,1749916260095,-460.0,0.00023287,4]
[365794433,1749916260105,-460.0,0.00023287,4]
[365794434,1749916260115,-460.0,0.00023287,4]
[365794435,1749916260126,-460.0,0.00023287,4]
[365794436,1749916260137,-321.18295285,0.00023287,4]
[365794437,1749916260147,-812.33,0.00023287,4]
[365794438,1749916260157,-528.30378963,0.00023287,4]
[365794439,1749916260167,-460.0,0.00023287,4]
[365794440,1749916260273,-460.0,0.00023287,4]
[365794441,1749916260283,-460.0,0.00023287,4]
[365794442,1749916260293,-460.0,0.00023287,4]
[365794443,1749916260305,-500.0,0.00023287,4]
[365794444,1749916260315,-460.0,0.00023287,4]
[365794445,1749916260324,-460.0,0.00023287,4]
[365794446,1749916260333,-460.0,0.00023287,4]
[365794447,1749916260344,-270.0,0.00023287,4]
[365794448,1749916260353,-460.0,0.00023287,4]
[365794449,1749916260363,-460.0,0.00023287,4]
[365794450,1749916260373,-460.0,0.00023287,4]
[365794451,1749916260383,-460.0,0.00023287,4]
[365794452,1749916260393,-542.11,0.00023287,4]
[365794453,1749916260403,-460.0,0.00023287,4]
[365794454,1749916260413,-1836.55,0.00023287,4]
[365794455,1749916260423,-460.0,0.00023287,4]
[365794456,1749916260433,-460.0,0.00023287,4]
[365794457,1749916260443,-460.0,0.00023287,4]
[365794458,1749916260452,-599.5,0.00023287,4]
[365794459,1749916260461,-817.64,0.00023287,4]
[365794460,1749916260471,-3264.59,0.00023287,4]
[365794461,1749916260480,-460.0,0.00023287,4]
[365794462,1749916260489,-2695.28,0.00023287,4]
[365794463,1749916260499,-460.0,0.00023287,4]
[365794464,1749916260508,-173.71564651,0.00023287,4]
[365794465,1749916260517,-621.44,0.00023287,4]
[365794466,1749916260527,-460.0,0.00023287,4]
[365794467,1749916260537,-967.38,0.00023287,4]
[365794468,1749916260547,-460.0,0.00023287,4]
[365794469,1749916260557,-460.0,0.00023287,4]
[365794470,1749916260567,-460.0,0.00023287,4]
[365794471,1749916260576,-460.0,0.00023287,4]
[365794472,1749916260585,-232.49311707,0.00023287,4]
[365794473,1749916260595,-460.0,0.00023287,4]
[365794474,1749916260604,-460.0,0.00023287,4]
[365794475,1749916260614,-3355.05,0.00023287,4]
[365794476,1749916260626,-1526.62,0.00023287,4]
[365794477,1749916260636,-460.0,0.00023287,4]
[365794478,1749916260645,-460.0,0.00023287,4]
[365794479,1749916260655,-2430.74,0.00023287,4]
[365794480,1749916260665,-497.82,0.00023287,4]
[365794481,1749916260674,-3536.6,0.00023287,4]
[365794482,1749916260684,-460.0,0.00023287,4]
[365794483,1749916260693,-460.0,0.00023287,4]
[365794484,1749916260703,-460.0,0.00023287,4]
[365794485,1749916260712,-482.37,0.00023287,4]
[365794486,1749916260721,-512.18,0.00023287,4]
[365794487,1749916260731,-460.0,0.00023287,4]
[365794488,1749916260740,-1444.28,0.00023287,4]
[365794489,1749916260750,-460.0,0.00023287,4]
[365794490,1749916260760,-460.0,0.00023287,4]
[365794491,1749916260770,-460.0,0.00023287,4]
[365794492,1749916260780,-558.52502202,0.00023287,4]
[365794493,1749916260789,-460.0,0.00023287,4]
[365794494,1749916260799,-460.0,0.00023287,4]
[365794495,1749916260808,-600.0,0.00023287,4]
[365794496,1749916260817,-460.0,0.00023287,4]
[365794497,1749916260827,-460.0,0.00023287,4]
[365794498,1749916260836,-500.0,0.00023346,2]
[365794499,1749916260845,-674.10209169,0.00023348,9]
[365794500,1749916260854,-151.0,0.0002335,7]
[365794501,1749916260863,-226.0,0.00023351,2]
[365794502,1749916260873,-10713.69461964,0.00023356,2]
[365794503,1749916260882,-226.0,0.00023423,2]
[365794504,1749916260892,-674.10209169,0.00023452,9]
[365794505,1749916260901,-89314.721429,0.000235,2]
[365794506,1749916260910,-178.205831,0.0002352,7]
[365794507,1749916260920,-2745.19,0.00023532,2]
[365794508,1749916260929,-674.10209169,0.00023555,9]
[365794509,1749916260938,-12150.41,0.0002356,5]
[365794510,1749916260947,-472.06816551,0.00023561,4]
[365794511,1749916260956,-460.0,0.00023561,4]
[365794512,1749916260966,-460.0,0.00023561,2]
[365794513,1749916260975,-460.0,0.00023561,4]
[365794514,1749916260984,-460.0,0.00023561,4]
[365794515,1749916260993,-460.0,0.00023561,4]
[365794516,1749916261003,-320.0,0.00023561,4]
[365794517,1749916261013,-460.0,0.00023561,4]
[365794518,1749916261023,-682.77,0.00023561,4]
[365794519,1749916261032,-155.34611443,0.00023561,4]
[365794520,1749916261042,-460.0,0.00023561,4]
[365794521,1749916261051,-460.0,0.00023561,4]
[365794522,1749916261062,-460.0,0.00023561,4]
[365794523,1749916261072,-460.0,0.00023561,4]
[365794524,1749916261081,-157.0440653,0.00023561,4]
[365794525,1749916261090,-460.0,0.00023561,4]
[365794526,1749916261099,-321.486605,0.00023561,4]
[365794527,1749916261108,-460.0,0.00023561,4]
[365794528,1749916261118,-460.0,0.00023561,4]
[365794529,1749916261127,-320.0,0.00023561,4]
[365794530,1749916261136,-460.0,0.00023561,4]
[365794531,1749916261145,-260.0,0.00023561,4]
[365794532,1749916261154,-460.0,0.00023561,4]
[365794533,1749916261164,-581.46090903,0.00023561,4]
[365794534,1749916261173,-460.0,0.00023561,4]
[365794535,1749916261182,-460.0,0.00023561,4]
[365794536,1749916261191,-460.0,0.00023561,4]
[365794537,1749916261200,-460.0,0.00023561,4]
[365794538,1749916261209,-460.0,0.00023561,4]
[365794539,1749916261219,-460.0,0.00023561,4]
[365794540,1749916261231,-460.0,0.00023561,4]
[365794541,1749916261241,-1721.92,0.00023561,4]
[365794542,1749916261250,-460.0,0.00023561,4]
[365794543,1749916261261,-460.0,0.00023561,4]
[365794544,1749916261271,-850.79,0.00023561,4]
[365794545,1749916261280,-249.20014089,0.00023561,4]
[365794546,1749916261289,-2378.63,0.00023561,4]
[365794547,1749916261300,-460.0,0.00023561,4]
[365794548,1749916261311,-460.0,0.00023561,4]
[365794549,1749916261321,-630.26,0.00023561,4]
[365794550,1749916261331,-460.0,0.00023561,4]
[365794551,1749916261340,-460.0,0.00023561,4]
[365794552,1749916261350,-1378.04,0.00023561,4]
[365794553,1749916261359,-460.0,0.00023561,4]
[365794554,1749916261369,-460.0,0.00023561,4]
[365794555,1749916261378,-460.0,0.00023561,4]
[365794556,1749916261388,-460.0,0.00023561,4]
[365794557,1749916261398,-798.04,0.00023561,4]
[365794558,1749916261407,-213.92269372,0.00023561,4]
[365794559,1749916261416,-2926.7,0.00023561,4]
[365794560,1749916261425,-460.0,0.00023561,4]
[365794561,1749916261435,-460.0,0.00023561,4]
[365794562,1749916261444,-460.0,0.00023561,4]
[365794563,1749916261454,-460.0,0.00023561,4]
[365794564,1749916261464,-350.0,0.00023561,4]
[365794565,1749916261473,-460.0,0.00023561,4]
[365794566,1749916261483,-1184.06,0.00023561,4]
[365794567,1749916261493,-460.0,0.00023561,4]
[365794568,1749916261502,-460.0,0.00023561,4]
[365794569,1749916261512,-460.0,0.00023561,4]
[365794570,1749916261523,-460.0,0.00023561,4]
[365794571,1749916261533,-460.0,0.00023561,4]
[365794572,1749916261542,-460.0,0.00023561,4]
[365794573,1749916261552,-370.0,0.00023561,4]
[365794574,1749916261562,-460.0,0.00023561,4]
[365794575,1749916261572,-518.22,0.00023561,4]
[365794576,1749916261582,-460.0,0.00023561,4]
[365794577,1749916261592,-474.84,0.00023561,4]
[365794578,1749916261603,-198.16197052,0.00023561,4]
[365794579,1749916261612,-460.0,0.00023561,4]
[365794580,1749916261622,-460.0,0.00023561,4]
[365794581,1749916261632,-460.0,0.00023561,4]
[365794582,1749916261641,-460.0,0.00023561,4]
[365794583,1749916261651,-460.0,0.00023561,4]
[365794584,1749916261661,-237.26308794,0.00023561,4]
[365794585,1749916261671,-812.33,0.00023561,4]
[365794586,1749916261681,-554.65332849,0.00023561,4]
[365794587,1749916261690,-460.0,0.00023561,4]
[365794588,1749916261700,-460.0,0.00023561,4]
[365794589,1749916261710,-460.0,0.00023561,4]
[365794590,1749916261719,-500.0,0.00023561,4]
[365794591,1749916261729,-460.0,0.00023561,4]
[365794592,1749916261738,-460.0,0.00023561,4]
[365794593,1749916261748,-460.0,0.00023561,4]
[365794594,1749916261757,-460.0,0.00023561,4]
[365794595,1749916261767,-460.0,0.00023561,4]
[365794596,1749916261777,-460.0,0.00023561,4]
[365794597,1749916261789,-460.0,0.00023561,4]
[365794598,1749916261799,-542.11,0.00023561,4]
[365794599,1749916261810,-460.0,0.00023561,4]
[365794600,1749916261820,-1836.55,0.00023561,4]
[365794601,1749916261830,-460.0,0.00023561,4]
[365794602,1749916261840,-460.0,0.00023561,4]
[365794603,1749916261850,-460.0,0.00023561,4]
[365794604,1749916261861,-599.5,0.00023561,4]
[365794605,1749916261871,-817.64,0.00023561,4]
[365794606,1749916261880,-3264.59,0.00023561,4]
[365794607,1749916261890,-460.0,0.00023561,4]
[365794608,1749916261900,-2695.28,0.00023561,4]
[365794609,1749916261909,-460.0,0.00023561,4]
[365794610,1749916261919,-621.44,0.00023561,4]
[365794611,1749916261930,-320.0,0.00023561,4]
[365794612,1749916261940,-967.38,0.00023561,4]
[365794613,1749916261950,-460.0,0.00023561,4]
[365794614,1749916261960,-460.0,0.00023561,4]
[365794615,1749916261971,-460.0,0.00023561,4]
[365794616,1749916261981,-460.0,0.00023561,4]
[365794617,1749916261991,-460.0,0.00023561,4]
[365794618,1749916262004,-3355.05,0.00023561,4]
[365794619,1749916262015,-1526.62,0.00023561,4]
[365794620,1749916262025,-460.0,0.00023561,4]
[365794621,1749916262034,-460.0,0.00023561,4]
[365794622,1749916262045,-2430.74,0.00023561,4]
[365794623,1749916262055,-497.82,0.00023561,4]
[365794624,1749916262066,-3536.6,0.00023561,4]
[365794625,1749916262076,-161.25911925,0.00023561,4]
[365794626,1749916262085,-460.0,0.00023561,4]
[365794627,1749916262094,-460.0,0.00023561,4]
[365794628,1749916262104,-512.18,0.00023561,4]
[365794629,1749916262114,-482.37,0.00023561,4]
[365794630,1749916262124,-460.0,0.00023561,4]
[365794631,1749916262133,-1444.28,0.00023561,4]
[365794632,1749916262143,-460.0,0.00023561,4]
[365794633,1749916262153,-460.0,0.00023561,4]
[365794634,1749916262162,-460.0,0.00023561,4]
[365794635,1749916262173,-460.0,0.00023561,4]
[365794636,1749916262183,-460.0,0.00023561,4]
[365794637,1749916262192,-581.46,0.00023561,4]
[365794638,1749916262202,-460.0,0.00023561,4]
[365794639,1749916262211,-1500.0,0.00023568,2]
[365794640,1749916262220,-1500.0,0.00023568,2]
[365794641,1749916262233,-903.0,0.00023578,2]
[365794642,1749916262243,-151.0,0.000236,10]
[365794643,1749916262253,-674.10209169,0.00023659,9]
[365794644,1749916262263,-3229.62196545,0.0002368,2]
[365794645,1749916262272,-226.0,0.00023722,2]
[365794646,1749916262282,-160.0,0.00023729,2]
[365794647,1749916262293,-160.0,0.00023729,2]
[365794648,1749916262304,-160.0,0.00023729,2]
[365794649,1749916262314,-160.0,0.00023729,2]
[365794650,1749916262325,-213.28201367,0.00023729,2]
[365794651,1749916262335,-424.40141186,0.00023737,2]
[365794652,1749916262345,-229.82479369,0.00023737,2]
[365794653,1749916262355,-845.10789306,0.00023737,2]
[365794654,1749916262365,-835.41710878,0.00023737,2]
[365794655,1749916262376,-226.0,0.00023747,2]
[365794656,1749916262385,-674.10209169,0.00023762,9]
[365794657,1749916262395,-150.0,0.00023773,2]
[365794658,1749916262406,-447387.09631233,0.0002378,5]
[365794659,1749916262415,-151.0,0.0002378,7]
[365794660,1749916262425,-151.0,0.0002378,7]
[365794661,1749916262436,-151.0,0.0002378,7]
[365794662,1749916262445,-102968.31212913,0.00023788,2]
[365794663,1749916262455,-189.589781,0.00023788,7]
[365794664,1749916262465,-189.589781,0.00023788,7]
[365794665,1749916262475,-445.945512,0.00023788,7]
[365794666,1749916262485,-445.945512,0.00023788,7]
[365794667,1749916262495,-165.611223,0.000238,7]
[365794668,1749916262508,-165.611223,0.000238,7]
[365794669,1749916262519,-151.0,0.000238,7]
[365794670,1749916262529,-151.0,0.000238,7]
[365794671,1749916262540,-2119.74,0.000238,7]
[365794672,1749916262550,-213.28201367,0.000238,7]
[365794673,1749916262562,-12533.30537164,0.000238,7]
[365794674,1749916262573,-226.0,0.00023809,2]
[365794675,1749916262584,-3229.62196538,0.00023816,2]
[365794676,1749916262594,-2000.0,0.00023816,2]
[365794677,1749916262604,-420.0,0.00023835,4]
[365794678,1749916262614,-460.0,0.00023835,2]
[365794679,1749916262625,-460.0,0.00023835,4]
[365794680,1749916262634,-460.0,0.00023835,4]
[365794681,1749916262644,-460.0,0.00023835,4]
[365794682,1749916262654,-682.77,0.00023835,4]
[365794683,1749916262665,-328.49602136,0.00023835,4]
[365794684,1749916262675,-173.78525752,0.00023835,4]
[365794685,1749916262685,-460.0,0.00023835,4]
[365794686,1749916262696,-460.0,0.00023835,4]
[365794687,1749916262706,-460.0,0.00023835,4]
[365794688,1749916262716,-460.0,0.00023835,4]
[365794689,1749916262726,-460.0,0.00023835,4]
[365794690,1749916262736,-460.0,0.00023835,4]
[365794691,1749916262746,-460.0,0.00023835,4]
[365794692,1749916262756,-460.0,0.00023835,4]
[365794693,1749916262766,-460.0,0.00023835,4]
[365794694,1749916262776,-460.0,0.00023835,4]
[365794695,1749916262786,-460.0,0.00023835,4]
[365794696,1749916262796,-460.0,0.00023835,4]
[365794697,1749916262805,-460.0,0.00023835,4]
[365794698,1749916262818,-348.36172699,0.00023835,4]
[365794699,1749916262827,-1721.92,0.00023835,4]
[365794700,1749916262837,-460.0,0.00023835,4]
[365794701,1749916262949,-460.0,0.00023835,4]
[365794702,1749916262960,-850.79,0.00023835,4]
[365794703,1749916262970,-2378.63,0.00023835,4]
[365794704,1749916262981,-227.1702133,0.00023835,4]
[365794705,1749916262991,-480.22664354,0.00023835,4]
[365794706,1749916263001,-630.26,0.00023835,4]
[365794707,1749916263012,-460.0,0.00023835,4]
[365794708,1749916263022,-460.0,0.00023835,4]
[365794709,1749916263033,-1378.04,0.00023835,4]
[365794710,1749916263043,-460.0,0.00023835,4]
[365794711,1749916263054,-460.0,0.00023835,4]
[365794712,1749916263066,-460.0,0.00023835,4]
[365794713,1749916263077,-798.04,0.00023835,4]
[365794714,1749916263087,-2926.7,0.00023835,4]
[365794715,1749916263097,-460.0,0.00023835,4]
[365794716,1749916263107,-190.0,0.00023835,4]
[365794717,1749916263117,-460.0,0.00023835,4]
[365794718,1749916263127,-460.0,0.00023835,4]
[365794719,1749916263137,-460.0,0.00023835,4]
[365794720,1749916263147,-1184.06,0.00023835,4]
[365794721,1749916263157,-460.0,0.00023835,4]
[365794722,1749916263167,-460.0,0.00023835,4]
[365794723,1749916263177,-536.44811244,0.00023835,4]
[365794724,1749916263186,-460.0,0.00023835,4]
[365794725,1749916263195,-460.0,0.00023835,4]
[365794726,1749916263205,-460.0,0.00023835,4]
[365794727,1749916263215,-518.22,0.00023835,4]
[365794728,1749916263228,-474.84,0.00023835,4]
[365794729,1749916263238,-460.0,0.00023835,4]
[365794730,1749916263248,-460.0,0.00023835,4]
[365794731,1749916263258,-460.0,0.00023835,4]
[365794732,1749916263269,-460.0,0.00023835,4]
[365794733,1749916263278,-460.0,0.00023835,4]
[365794734,1749916263288,-812.33,0.00023835,4]
[365794735,1749916263298,-460.0,0.00023835,4]
[365794736,1749916263308,-460.0,0.00023835,4]
[365794737,1749916263318,-310.0,0.00023835,4]
[365794738,1749916263328,-354.89766306,0.00023835,4]
[365794739,1749916263338,-460.0,0.00023835,4]
[365794740,1749916263348,-460.0,0.00023835,4]
[365794741,1749916263357,-460.0,0.00023835,4]
[365794742,1749916263367,-460.0,0.00023835,4]
[365794743,1749916263378,-460.0,0.00023835,4]
[365794744,1749916263387,-460.0,0.00023835,4]
[365794745,1749916263398,-542.11,0.00023835,4]
[365794746,1749916263408,-177.44037117,0.00023835,4]
[365794747,1749916263418,-1836.55,0.00023835,4]
[365794748,1749916263428,-460.0,0.00023835,4]
[365794749,1749916263441,-460.0,0.00023835,4]
[365794750,1749916263451,-599.5,0.00023835,4]
[365794751,1749916263460,-817.64,0.00023835,4]
[365794752,1749916263470,-3264.59,0.00023835,4]
[365794753,1749916263480,-460.0,0.00023835,4]
[365794754,1749916263493,-2695.28,0.00023835,4]
[365794755,1749916263503,-460.0,0.00023835,4]
[365794756,1749916263513,-621.44,0.00023835,4]
[365794757,1749916263524,-967.38,0.00023835,4]
[365794758,1749916263534,-460.0,0.00023835,4]
[365794759,1749916263544,-460.0,0.00023835,4]
[365794760,1749916263553,-460.0,0.00023835,4]
[365794761,1749916263565,-460.0,0.00023835,4]
[365794762,1749916263576,-460.0,0.00023835,4]
[365794763,1749916263586,-3355.05,0.00023835,4]
[365794764,1749916263596,-1526.62,0.00023835,4]
[365794765,1749916263607,-460.0,0.00023835,4]
[365794766,1749916263618,-239.30935665,0.00023835,4]
[365794767,1749916263628,-2430.74,0.00023835,4]
[365794768,1749916263638,-497.82,0.00023835,4]
[365794769,1749916263649,-3536.6,0.00023835,4]
[365794770,1749916263660,-460.0,0.00023835,4]
[365794771,1749916263670,-460.0,0.00023835,4]
[365794772,1749916263680,-512.18,0.00023835,4]
[365794773,1749916263690,-482.37,0.00023835,4]
[365794774,1749916263701,-460.0,0.00023835,4]
[365794775,1749916263711,-1444.28,0.00023835,4]
[365794776,1749916263721,-460.0,0.00023835,4]
[365794777,1749916263732,-460.0,0.00023835,4]
[365794778,1749916263743,-460.0,0.00023835,4]
[365794779,1749916263753,-460.0,0.00023835,4]
[365794780,1749916263763,-460.0,0.00023835,4]
[365794781,1749916263774,-674.10209169,0.00023866,10]
[365794782,1749916263784,-857.32520771,0.000239,2]
[365794783,1749916263794,-2066.47547197,0.000239,2]
[365794784,1749916263804,-216194.77682854,0.000239,5]
[365794785,1749916263825,-35753.72447015,0.000239,5]
[365794786,1749916263862,-10668.55592065,0.000239,5]
[365794787,1749916263881,-1193.11628209,0.000239,5]
[365794788,1749916263893,-1587.42215,0.000239,5]
[365794789,1749916263905,-992.766544,0.000239,5]
[365794790,1749916264174,-460.0,0.00021917,4]
[365794791,1749916264183,-460.0,0.00021917,4]
[365794792,1749916264193,-460.0,0.00021917,4]
[365794793,1749916264203,-460.0,0.00021917,4]
[365794794,1749916264212,-460.0,0.00022191,4]
[365794795,1749916264222,-460.0,0.00022191,4]
[365794796,1749916264235,-460.0,0.00022191,4]
[365794797,1749916264244,-460.0,0.00022191,4]